bitfinex/quotes_ETHUSD_20240924
["timestamp","ask_amount","ask_price","bid_price","bid_amount"]
[1727172649666,1.4403833,2651.2,2650.7,7.37]
[1727172649667,1.4403833,2651.2,2650.7,3.77247]
[1727172649817,0.8214,2651.1,2650.8,3.77236]
[1727172650029,0.8214,2651.1,2650.6,0.3992]
[1727172650175,1.4403833,2651.0,2650.5,4.1496397]
[1727172650378,5.2126133,2651.0,2650.5,4.1496397]
[1727172650897,8.9848833,2651.0,2650.5,0.3768197]
[1727172651106,7.20360364,2651.0,2650.5,0.3768197]
[1727172651397,1.4403833,2650.6,2650.5,0.3768197]
[1727172651713,1.4403833,2650.6,2649.9,3.77365]
[1727172651714,5.2131133,2650.6,2649.9,3.77365]
[1727172651918,5.2131133,2650.6,2649.9,3.7736]
[1727172651919,1.4403833,2650.4,2649.9,3.7736]
[1727172652087,1.4403833,2650.4,2649.7,4.17316]
[1727172652088,0.8214,2650.3,2649.7,4.17316]
[1727172652285,4.59458,2650.3,2649.7,3.77391]
[1727172652713,0.8214,2650.3,2649.8,3.77376]
[1727172653229,0.8214,2650.3,2649.9,0.55]
[1727172653429,0.8214,2650.3,2649.9,4.32369]
[1727172655531,0.8214,2650.3,2649.9,4.32363]
[1727172657312,0.8214,2650.3,2649.9,8.09726]
[1727172657515,0.8214,2650.3,2649.9,4.32363]
[1727172657825,0.8214,2650.3,2649.9,8.09726]
[1727172658037,0.8214,2650.3,2650.0,3.77358]
[1727172660702,0.8214,2650.3,2649.9,0.55]
[1727172660927,0.8214,2650.3,2650.1,3.77335]
[1727172663933,0.8214,2650.3,2650.1,7.54672]
[1727172664941,0.8214,2650.3,2650.1,3.77335]
[1727172665144,0.8214,2650.3,2650.2,3.7733]
[1727172665901,0.7633,2650.6,2650.1,3.77335]
[1727172666110,0.7633,2650.6,2650.3,3.77308]
[1727172666343,0.7633,2650.6,2650.3,3.77306]
[1727172667048,0.7633,2650.6,2650.2,3.77318]
[1727172668235,0.7633,2650.6,2650.3,3.77314]
[1727172673031,0.7633,2650.6,2650.2,3.77326]
[1727172673348,4.53603,2650.6,2650.2,3.77326]
[1727172673643,5.81109068,2650.6,2650.2,3.77326]
[1727172675136,2.03836068,2650.6,2650.2,3.77319]
[1727172675322,0.7633,2650.6,2650.2,3.77319]
[1727172675713,4.53604,2650.6,2650.1,7.54678]
[1727172676371,4.53604,2650.6,2650.1,3.77336]
[1727172676579,0.7633,2650.4,2650.1,3.77336]
[1727172676947,4.53632,2650.4,2650.0,0.55]
[1727172677191,4.53632,2650.4,2649.9,3.77362]
[1727172677192,1.44198676,2650.3,2649.9,3.77362]
[1727172677678,1.44198676,2650.3,2649.7,3.77392]
[1727172677679,1.44198676,2650.1,2649.7,3.77392]
[1727172678543,1.44198676,2650.1,2649.7,7.54785]
[1727172678742,4.53667,2650.2,2649.7,3.77392]
[1727172678939,4.53667,2650.2,2649.8,3.77386]
[1727172680210,5.97865676,2650.2,2649.8,3.77386]
[1727172680711,2.20528676,2650.2,2649.8,3.77386]
[1727172680920,0.7633,2650.2,2649.9,3.77361]
[1727172681985,0.7633,2650.2,2649.8,3.77386]
[1727172682186,0.7633,2650.2,2649.8,7.54766]
[1727172683116,0.7633,2650.2,2649.9,3.77369]
[1727172686937,0.7633,2650.2,2649.9,3.77371]
[1727172688499,0.7633,2650.2,2649.8,3.77385]
[1727172690126,0.7633,2650.2,2649.9,3.77371]
[1727172690706,0.7633,2650.2,2649.9,3.77362]
[1727172690905,0.7633,2650.2,2649.9,7.54727]
[1727172691527,0.7633,2650.2,2649.9,3.77362]
[1727172695253,1.55352654,2650.2,2649.9,3.77362]
[1727172696316,0.79022654,2650.1,2649.9,3.77362]
[1727172697153,0.79022654,2650.1,2649.8,3.77385]
[1727172697369,0.79022654,2650.0,2649.8,3.77385]
[1727172698456,0.79022654,2650.0,2649.9,0.38659821]
[1727172698757,6.78888955,2650.0,2649.9,0.38659821]
[1727172699176,3.01530955,2650.0,2649.9,0.38659821]
[1727172702759,3.09530955,2650.0,2649.9,0.38659821]
[1727172703311,1.51431964,2650.0,2649.9,0.38659821]
[1727172704451,2.04821952,2650.0,2649.9,0.38659821]
[1727172704963,2.0473324,2650.0,2649.9,0.38659821]
[1727172706922,1.26511952,2650.0,2649.9,0.38659821]
[1727172707132,0.86972544,2650.0,2649.9,4.16031821]
[1727172707538,0.08,2650.0,2649.9,4.16031821]
[1727172708063,0.86972544,2650.0,2649.9,4.16031821]
[1727172708365,0.08,2650.0,2649.9,4.16031821]
[1727172709422,0.08,2650.0,2649.9,4.71031821]
[1727172709620,0.08,2650.0,2649.9,5.18578619]
[1727172709863,0.08,2650.0,2649.9,4.72372]
[1727172714374,0.08,2650.0,2649.9,5.11005322]
[1727172715452,0.08,2650.0,2649.9,5.11006826]
[1727172717388,0.08,2650.0,2649.9,5.72827412]
[1727172717679,0.08,2650.0,2649.9,5.11006826]
[1727172718256,0.08,2650.0,2649.9,5.72830651]
[1727172718657,0.08,2650.0,2649.9,4.72372]
[1727172719067,0.08,2650.0,2649.9,5.72835714]
[1727172719283,0.08,2650.0,2649.9,5.72837348]
[1727172720643,0.08,2650.0,2649.9,5.1101189]
[1727172721397,0.08,2650.0,2649.9,4.72372]
[1727172721565,0.08,2650.0,2649.9,5.72847989]
[1727172722167,0.08,2650.0,2649.9,5.96034494]
[1727172723560,0.08,2650.0,2649.9,4.94203116]
[1727172723802,0.08,2650.0,2649.9,4.71016448]
[1727172724378,0.08,2650.0,2649.9,4.32372]
[1727172724852,0.08,2650.0,2649.9,5.11016772]
[1727172725400,0.08,2650.0,2649.9,5.72847895]
[1727172725613,0.08,2650.0,2649.9,5.11016772]
[1727172727779,0.08,2650.0,2649.9,4.72372]
[1727172727980,0.08,2650.0,2649.9,5.11014857]
[1727172729199,0.08,2650.0,2649.9,5.18561431]
[1727172729361,0.08,2650.0,2649.9,5.11014857]
[1727172729692,0.08,2650.0,2649.9,5.72840123]
[1727172729905,0.08,2650.0,2649.9,5.80386457]
[1727172730106,0.08,2650.0,2649.9,4.71014857]
[1727172734666,0.08,2650.0,2649.9,4.32372]
[1727172734820,0.08,2650.0,2649.9,4.71010867]
[1727172735022,0.08,2650.0,2649.9,13.49080702]
[1727172735263,0.08,2650.0,2649.9,19.62898915]
[1727172735770,0.08,2650.0,2649.9,18.83868553]
[1727172736311,0.08,2650.0,2649.9,19.63057334]
[1727172737161,0.08,2650.0,2649.9,19.16907551]
[1727172737617,0.08,2650.0,2649.9,18.3771877]
[1727172738558,0.08,2650.0,2649.9,17.92242135]
[1727172738766,0.08,2650.0,2649.9,17.09750337]
[1727172738916,0.08,2650.0,2649.9,17.10030644]
[1727172739113,0.08,2650.0,2649.9,15.04964244]
[1727172739566,0.08,2650.0,2649.9,15.04948596]
[1727172740554,0.08,2650.0,2649.9,15.0493485]
[1727172741484,0.08,2650.0,2649.9,13.8707895]
[1727172742647,0.08,2650.0,2649.9,12.86671364]
[1727172742848,0.08,2650.0,2649.9,13.08437302]
[1727172743791,0.08,2650.0,2649.9,13.86995077]
[1727172744091,0.08,2650.0,2649.9,13.08437302]
[1727172744964,0.08,2650.0,2649.9,15.31251209]
[1727172745288,0.08,2650.0,2649.9,17.40707695]
[1727172745588,0.08,2650.0,2649.9,17.79294748]
[1727172746089,0.08,2650.0,2649.9,17.40700247]
[1727172746595,0.08,2650.0,2649.9,18.19672747]
[1727172747074,0.08,2650.0,2649.9,19.3824571]
[1727172748770,0.08,2650.0,2649.9,15.0252611]
[1727172748974,0.08,2650.0,2649.9,43.1174941]
[1727172749493,0.08,2650.0,2649.9,43.11750802]
[1727172751243,0.7645,2650.9,2650.8,3.77244]
[1727172754488,0.7645,2650.9,2650.8,4.32244]
[1727172759558,0.7915,2651.1,2651.0,3.77216]
[1727172759723,0.7915,2651.1,2651.0,4.32216]
[1727172760047,1.18511952,2651.4,2651.0,4.32216]
[1727172760048,0.7915,2651.3,2651.2,3.77187]
[1727172760616,0.7915,2651.3,2651.2,4.32187]
[1727172761051,1.58122544,2651.5,2651.3,3.77173]
[1727172761252,1.58122544,2651.5,2651.4,4.32159]
[1727172761253,0.7915,2651.5,2651.4,4.32159]
[1727172761842,0.78972544,2651.8,2651.4,0.55]
[1727172761843,0.7915,2651.8,2651.4,0.55]
[1727172762027,0.7915,2651.8,2651.6,3.77119]
[1727172762228,0.7915,2651.8,2651.5,3.77141]
[1727172762455,0.7915,2651.8,2651.6,3.77122]
[1727172765581,0.7915,2651.8,2651.5,3.77141]
[1727172765887,0.7915,2651.8,2651.5,3.77136]
[1727172766993,0.7915,2651.8,2651.6,3.7713]
[1727172767180,0.7915,2651.8,2651.5,3.77136]
[1727172780605,0.7915,2651.8,2651.6,3.77122]
[1727172785203,0.7915,2651.8,2651.5,0.55]
[1727172785990,0.7915,2651.8,2651.5,3.77142]
[1727172787008,1.44260517,2651.6,2651.3,3.77161]
[1727172787328,2.2606975,2651.8,2651.3,3.77161]
[1727172787329,0.7915,2651.8,2651.5,3.77136]
[1727172788314,0.7915,2651.8,2651.3,3.77172]
[1727172788512,1.58122544,2651.8,2651.4,3.77155]
[1727172789132,0.7915,2651.8,2651.4,3.77155]
[1727172789547,1.58122544,2651.8,2651.4,3.77155]
[1727172790255,1.58122544,2651.8,2651.5,3.77138]
[1727172790468,1.58122544,2651.8,2651.5,3.77136]
[1727172790764,1.58122544,2651.8,2651.5,7.54273]
[1727172791128,1.58122544,2651.8,2651.5,3.77136]
[1727172791532,1.58122544,2651.8,2651.6,3.77122]
[1727172791736,0.7915,2651.8,2651.6,3.77122]
[1727172793466,1.58122544,2651.8,2651.6,3.77122]
[1727172798161,0.78972544,2651.7,2651.6,3.77122]
[1727172798364,1.58122544,2651.8,2651.6,3.77122]
[1727172799190,0.78972544,2651.7,2651.6,3.77122]
[1727172802250,1.97661952,2651.8,2651.6,3.77122]
[1727172802466,0.79025207,2651.7,2651.6,3.77122]
[1727172802698,1.97661952,2651.8,2651.6,3.77122]
[1727172803195,1.18511952,2651.7,2651.6,3.77122]
[1727172807058,2.37248991,2651.8,2651.6,3.77122]
[1727172808571,2.37248991,2651.8,2651.6,3.77118]
[1727172810375,2.37248991,2651.8,2651.7,3.77116]
[1727172810376,1.58098991,2651.8,2651.7,3.77116]
[1727172813815,1.58098991,2651.8,2651.7,4.15801578]
[1727172814495,2.27420517,2652.0,2651.6,3.77128]
[1727172814677,2.27420517,2652.0,2651.7,0.38685927]
[1727172815211,0.8316,2652.0,2651.7,3.77108]
[1727172816509,1.58252389,2651.8,2651.7,3.77108]
[1727172817576,1.58252389,2651.8,2651.7,4.15791609]
[1727172818173,1.58252389,2651.8,2651.7,3.77108]
[1727172818374,1.58252389,2651.8,2651.5,3.77143]
[1727172818576,1.18688052,2651.7,2651.6,3.7713]
[1727172818778,1.58252389,2651.7,2651.6,3.7713]
[1727172819035,1.18686669,2651.7,2651.6,3.7713]
[1727172819315,2.41412389,2651.7,2651.5,3.77135]
[1727172819521,1.18680884,2651.6,2651.5,3.77135]
[1727172819716,1.18680884,2651.6,2651.5,4.39028482]
[1727172820177,1.18680884,2651.6,2651.5,3.77135]
[1727172821441,1.18680884,2651.6,2651.5,4.1581919]
[1727172821750,1.18680884,2651.6,2651.5,4.77712626]
[1727172821920,1.18680884,2651.6,2651.5,4.39028436]
[1727172823141,1.18680884,2651.6,2651.5,3.77135]
[1727172823722,1.18680884,2651.6,2651.5,4.77711746]
[1727172823923,1.18680884,2651.6,2651.5,5.16395136]
[1727172824342,1.18680884,2651.6,2651.5,4.54501754]
[1727172824575,1.18680884,2651.6,2651.5,4.1581839]
[1727172829651,1.18680884,2651.6,2651.4,3.77147]
[1727172829652,0.7517,2651.5,2651.4,3.77158]
[1727172829856,1.9388715,2651.5,2651.4,3.77158]
[1727172830215,1.1871715,2651.5,2651.4,3.77158]
[1727172831274,1.1871715,2651.5,2651.4,4.77737739]
[1727172831772,1.1871715,2651.5,2651.4,4.87737739]
[1727172832478,0.79148393,2651.5,2651.4,4.87737739]
[1727172832942,1.1871715,2651.6,2651.4,4.87737739]
[1727172833145,1.1871715,2651.5,2651.4,3.87158]
[1727172833883,1.1871715,2651.5,2651.4,4.4905629]
[1727172834496,1.1871715,2651.6,2651.4,4.49055777]
[1727172834777,1.1871715,2651.5,2651.4,4.49055777]
[1727172835451,1.1871715,2651.5,2651.4,4.49055852]
[1727172836855,1.1871715,2651.6,2651.4,3.87158]
[1727172837062,2.33422389,2651.7,2651.4,3.87158]
[1727172837063,1.1871715,2651.5,2651.4,3.87158]
[1727172837265,1.1871715,2651.5,2651.4,4.49056363]
[1727172838554,1.44260517,2651.5,2651.4,0.71898363]
[1727172838753,4.1289686,2651.5,2651.4,0.1]
[1727172839170,7.9004186,2651.5,2651.4,0.1]
[1727172839373,6.31789471,2651.5,2651.4,0.1]
[1727172840314,8.69262792,2651.5,2651.4,0.1]
[1727172840600,6.31789471,2651.5,2651.4,0.1]
[1727172840777,8.69262792,2651.5,2651.4,0.1]
[1727172841155,6.31789471,2651.5,2651.4,0.1]
[1727172841404,8.69081148,2651.5,2651.4,0.1]
[1727172842113,6.31789471,2651.5,2651.4,0.1]
[1727172847199,8.29095701,2651.5,2651.4,0.1]
[1727172847687,6.31789471,2651.5,2651.4,0.1]
[1727172848089,11.68645434,2651.5,2651.4,0.1]
[1727172850513,9.31789471,2651.5,2651.4,0.1]
[1727172850723,11.68645434,2651.5,2651.4,0.1]
[1727172851238,9.31789471,2651.5,2651.4,0.1]
[1727172860194,11.28691558,2651.5,2651.4,0.1]
[1727172860435,9.31789471,2651.5,2651.4,0.1]
[1727172861202,11.28685309,2651.5,2651.4,0.1]
[1727172865839,11.28688408,2651.5,2651.4,0.1]
[1727172866139,9.31789471,2651.5,2651.4,0.1]
[1727172866343,11.28692528,2651.5,2651.4,0.1]
[1727172866901,9.31789471,2651.5,2651.4,0.1]
[1727172867105,11.2869079,2651.5,2651.4,0.1]
[1727172870742,11.28799476,2651.5,2651.4,0.1]
[1727172871247,11.28800135,2651.5,2651.4,0.1]
[1727172871652,9.31789471,2651.5,2651.4,0.1]
[1727172879526,11.68363735,2651.5,2651.4,0.1]
[1727172881725,9.31789471,2651.5,2651.4,0.1]
[1727172881924,11.68676232,2651.5,2651.4,0.1]
[1727172882646,9.31789471,2651.5,2651.4,0.1]
[1727172884513,12.07792779,2651.5,2651.4,0.1]
[1727172885515,9.31789471,2651.5,2651.4,0.1]
[1727172885938,12.0859687,2651.5,2651.4,0.1]
[1727172886137,9.31789471,2651.5,2651.4,0.1]
[1727172886549,12.08601675,2651.5,2651.4,0.1]
[1727172887359,9.31789471,2651.5,2651.4,0.1]
[1727172887569,12.08618772,2651.5,2651.4,0.1]
[1727172887761,9.31789471,2651.5,2651.4,0.1]
[1727172887933,12.08620084,2651.5,2651.4,0.1]
[1727172889228,9.31789471,2651.5,2651.4,0.1]
[1727172889628,12.08683565,2651.5,2651.4,0.1]
[1727172890087,9.31789471,2651.5,2651.4,0.1]
[1727172894261,12.58863954,2651.5,2651.4,0.1]
[1727172894857,9.31789471,2651.5,2651.4,0.1]
[1727172895277,12.58834156,2651.5,2651.4,0.1]
[1727172896044,9.31789471,2651.5,2651.4,0.1]
[1727172896240,12.58803381,2651.5,2651.4,0.1]
[1727172900785,12.58719842,2651.5,2651.4,0.1]
[1727172903889,9.31789471,2651.5,2651.4,0.1]
[1727172904052,12.58865916,2651.5,2651.4,0.1]
[1727172908653,7.87528954,2651.5,2651.4,0.1]
[1727172908856,9.54044839,2651.5,2651.4,0.1]
[1727172909263,1.44260517,2651.5,2651.4,0.5]
[1727172909573,3.42063949,2651.5,2651.4,0.5]
[1727172912783,1.44260517,2651.5,2651.4,0.5]
[1727172913099,7.19208949,2651.5,2651.4,0.5]
[1727172915564,5.21405517,2651.5,2651.4,0.5]
[1727172917314,6.79381615,2651.5,2651.4,0.5]
[1727172922523,2.62588074,2651.5,2651.4,0.5]
[1727172922694,1.44260517,2651.5,2651.4,0.5]
[1727172922880,3.02236615,2651.5,2651.4,0.5]
[1727172923682,1.44260517,2651.5,2651.4,0.5]
[1727172924009,3.02236615,2651.5,2651.4,0.5]
[1727172924227,1.44260517,2651.5,2651.4,0.5]
[1727172926602,2.62547974,2651.5,2651.4,0.5]
[1727172927042,5.21405517,2651.5,2651.4,0.5]
[1727172927527,6.39686775,2651.5,2651.4,0.5]
[1727172927690,5.21405517,2651.5,2651.4,0.5]
[1727172927891,6.39687843,2651.5,2651.4,0.5]
[1727172928905,5.21405517,2651.5,2651.4,0.5]
[1727172929129,6.39681272,2651.5,2651.4,0.5]
[1727172929328,2.62536272,2651.5,2651.4,0.5]
[1727172931797,5.74229943,2651.8,2651.5,3.77145]
[1727172931798,0.78824119,2651.7,2651.5,3.77145]
[1727172932009,0.78824119,2651.9,2651.6,0.4]
[1727172932192,0.78824119,2652.0,2651.8,4.17102]
[1727172932394,0.78824119,2652.1,2651.8,4.17102]
[1727172932694,0.78824119,2652.1,2651.9,3.77084]
[1727172933427,2.23084636,2652.2,2651.9,3.77084]
[1727172934139,2.23084636,2652.2,2651.8,0.4]
[1727172934140,0.78824119,2652.1,2651.8,0.4]
[1727172934434,0.78824119,2652.1,2651.8,4.17101]
[1727172935918,2.23084636,2652.2,2651.8,4.17101]
[1727172937513,2.23084636,2652.2,2651.8,0.4]
[1727172937723,2.23084636,2652.2,2651.8,4.171]
[1727172938510,1.44260517,2652.2,2651.8,4.171]
[1727172940239,1.44260517,2652.2,2651.9,3.77086]
[1727172942458,1.44260517,2652.2,2651.8,4.171]
[1727172942667,5.21306517,2652.2,2651.8,4.171]
[1727172944958,6.00130636,2652.2,2651.8,4.171]
[1727172945256,5.21306517,2652.2,2651.8,4.171]
[1727172948876,1.44260517,2652.2,2651.8,4.171]
[1727172950341,2.23084636,2652.2,2651.9,3.77087]
[1727172950559,1.44260517,2652.2,2651.9,3.77087]
[1727172951435,4.55855119,2652.3,2651.9,3.77087]
[1727172951782,4.55855119,2652.3,2651.8,0.4]
[1727172951783,0.0381135,2652.5,2652.4,3.77017]
[1727172952081,0.0381135,2652.5,2652.4,4.79556574]
[1727172952679,0.0381135,2652.5,2652.4,4.17017]
[1727172955947,0.0381135,2652.5,2652.4,0.4]
[1727172956142,0.0381135,2652.5,2652.4,4.17017]
[1727172957549,0.0381135,2652.5,2652.4,0.4]
[1727172958286,0.0381135,2652.5,2652.4,4.17017]
[1727172958647,0.0381135,2652.5,2652.4,4.24556643]
[1727172963661,0.0381135,2652.5,2652.4,6.2381716]
[1727172964547,0.0381135,2652.5,2652.4,4.79556643]
[1727172968155,0.0381135,2652.5,2652.4,6.2381716]
[1727172968786,0.0381135,2652.5,2652.4,32.3193806]
[1727172968951,0.0381135,2652.5,2652.4,28.36776417]
[1727172969271,0.0381135,2652.5,2652.4,28.01641417]
[1727172969651,0.0381135,2652.5,2652.4,27.49340117]
[1727172969848,0.0381135,2652.5,2652.4,16.68004417]
[1727172973269,0.0381135,2653.3,2653.2,4.71903]
[1727172973666,0.0381135,2653.3,2653.2,4.79439312]
[1727172974490,0.0381135,2653.3,2653.2,26.07903312]
[1727172974710,0.0381135,2653.3,2653.2,26.00367]
[1727172974855,0.0381135,2653.3,2653.2,25.079019]
[1727172978061,0.0381135,2653.3,2653.2,24.298771]
[1727172978474,0.0381135,2653.3,2653.2,23.377998]
[1727172979281,0.0381135,2653.3,2653.2,24.09223317]
[1727172979973,0.0381135,2653.3,2653.2,23.59386417]
[1727172980307,0.0381135,2653.3,2653.2,22.90396417]
[1727172980669,0.0381135,2653.3,2653.2,21.95686217]
[1727172985418,0.0381135,2654.1,2653.2,21.95686217]
[1727172985729,0.0381135,2654.9,2654.8,6.76676]
[1727172985929,0.0381135,2654.9,2654.8,4.31676]
[1727172986105,0.0381135,2654.9,2654.8,50.61953768]
[1727172986288,0.0381135,2654.9,2654.8,53.544245]
[1727172986491,0.0381135,2654.9,2654.8,53.50557879]
[1727172986800,0.0381135,2654.9,2654.8,50.394245]
[1727172986985,0.0381135,2654.9,2654.8,49.994245]
[1727172988919,0.0381135,2654.9,2654.8,50.544245]
[1727172989332,0.0381135,2654.9,2654.8,4.31676]
[1727172989633,0.0381135,2654.9,2654.8,4.39206934]
[1727172991940,0.0381135,2654.9,2654.8,15.69257034]
[1727172992122,0.0381135,2654.9,2654.8,15.617261]
[1727172994429,0.0381135,2654.9,2654.8,13.828676]
[1727172994640,0.0381135,2654.9,2654.7,3.76689]
[1727172994798,0.0381135,2654.9,2654.6,3.76704]
[1727172995197,0.0381135,2654.9,2654.8,3.76676]
[1727172998046,0.0381135,2654.9,2654.8,6.87809379]
[1727172998341,0.0381135,2654.9,2654.8,7.42809379]
[1727172998701,0.0381135,2654.9,2654.8,25.74098962]
[1727172998903,0.0381135,2654.9,2654.8,24.796413]
[1727172999343,0.0381135,2654.9,2654.8,24.408673]
[1727173000199,0.0381135,2654.9,2654.8,4.71676]
[1727173000400,0.0381135,2654.9,2654.8,4.79206834]
[1727173000738,0.0381135,2654.9,2654.8,20.354105]
[1727173000900,0.0381135,2654.9,2654.8,20.215105]
[1727173001301,0.0381135,2654.9,2654.8,9.420266]
[1727173001547,0.0381135,2654.9,2654.8,9.111346]
[1727173001852,0.0381135,2654.9,2654.8,4.31676]
[1727173002198,0.0381135,2654.9,2654.8,14.5704588]
[1727173002402,0.0381135,2654.9,2654.8,14.495146]
[1727173003270,0.0381135,2654.9,2654.8,10.638246]
[1727173005128,0.0381135,2654.9,2654.8,9.483363]
[1727173007072,0.8124135,2655.7,2655.4,3.76583]
[1727173007251,0.0381135,2655.7,2655.6,3.76562]
[1727173007735,0.0381135,2655.7,2655.3,3.76592]
[1727173007937,0.7985,2655.6,2655.3,3.76592]
[1727173008163,0.7985,2655.6,2655.1,3.76624]
[1727173008372,0.8123435,2655.6,2655.1,3.76624]
[1727173008665,0.0138435,2655.6,2655.3,3.76602]
[1727173008875,0.0138435,2655.6,2655.1,3.76631]
[1727173009278,0.0138435,2655.6,2654.9,6.87789379]
[1727173009478,0.7985,2655.5,2654.9,3.76652]
[1727173010131,0.6985,2655.5,2654.9,3.76652]
[1727173010331,0.7123435,2655.5,2654.9,3.76652]
[1727173011202,0.7123435,2655.5,2655.0,3.76643]
[1727173011377,0.7123435,2655.5,2654.9,3.76652]
[1727173011577,0.7123435,2655.5,2655.1,3.76633]
[1727173012503,0.7123435,2655.5,2654.7,7.53366]
[1727173012817,0.7123435,2655.5,2654.5,3.76706]
[1727173012818,3.0,2655.4,2654.5,3.76706]
[1727173013103,0.7985,2655.2,2654.5,3.76706]
[1727173013815,0.7985,2655.2,2654.6,3.76703]
[1727173014178,0.7985,2655.2,2654.7,3.76688]
[1727173015016,0.7985,2655.2,2654.8,3.76674]
[1727173015170,0.7985,2655.2,2654.7,3.84220863]
[1727173015673,0.7985,2655.2,2654.7,7.60902863]
[1727173016185,0.0138435,2655.3,2654.9,3.7665]
[1727173016387,0.0138435,2655.3,2655.2,3.76619]
[1727173016702,3.807379,2656.2,2655.1,3.11133379]
[1727173016703,0.7123435,2655.4,2655.1,3.7663]
[1727173016872,0.7123435,2655.4,2654.7,3.76679]
[1727173017283,0.7123435,2655.4,2654.9,3.76658]
[1727173017909,0.7123435,2655.4,2654.7,7.53355]
[1727173018110,0.7123435,2655.4,2654.8,3.76673]
[1727173019418,0.7123435,2655.4,2654.7,3.76676]
[1727173019419,0.7123435,2655.4,2654.9,3.76661]
[1727173020287,0.7123435,2655.4,2654.9,3.76654]
[1727173021116,0.7123435,2655.4,2655.0,3.76639]
[1727173021305,0.7123435,2655.4,2655.0,7.53276]
[1727173021730,0.7123435,2655.4,2655.0,3.76637]
[1727173023702,0.7123435,2655.4,2655.1,3.76625]
[1727173024646,0.7123435,2655.4,2655.0,3.76637]
[1727173025340,0.7123435,2655.4,2655.1,3.76633]
[1727173026080,0.7123435,2655.4,2655.0,7.53276]
[1727173026249,0.7123435,2655.4,2655.1,3.76633]
[1727173027178,0.7123435,2655.4,2655.1,3.76624]
[1727173029379,0.7123435,2655.4,2654.9,3.76652]
[1727173029980,0.7123435,2655.4,2654.7,3.76683]
[1727173029981,0.94490622,2655.4,2654.7,3.76683]
[1727173030150,0.8225,2655.2,2654.7,3.76678]
[1727173030356,0.8225,2655.1,2654.8,3.76675]
[1727173030660,1.61074119,2655.1,2654.8,3.76675]
[1727173031068,1.61074119,2655.1,2654.7,3.7669]
[1727173031239,0.78824119,2655.0,2654.7,3.7669]
[1727173032548,0.78824119,2655.0,2654.8,3.76669]
[1727173032879,0.8225,2655.1,2654.9,3.76652]
[1727173033284,0.8225,2655.1,2655.0,3.76647]
[1727173034794,1.18275755,2655.4,2655.2,3.76619]
[1727173034795,1.61074119,2655.3,2655.2,3.76619]
[1727173035855,0.8225,2655.3,2655.2,3.76619]
[1727173036953,1.61074119,2655.3,2655.2,3.76619]
[1727173038306,0.8225,2655.6,2655.5,3.76576]
[1727173038461,1.61074119,2655.8,2655.6,3.76562]
[1727173038662,1.61074119,2655.8,2655.7,3.76548]
[1727173039070,0.8225,2655.8,2655.7,3.76548]
[1727173039270,1.6124114,2655.8,2655.7,3.76548]
[1727173039556,1.18275755,2655.9,2655.7,3.76548]
[1727173039557,0.7899114,2655.9,2655.7,3.76548]
[1727173039758,0.8225,2656.0,2655.9,3.7652]
[1727173040267,1.6124114,2656.0,2655.9,3.7652]
[1727173040823,0.8225,2656.0,2655.9,3.7652]
[1727173041317,1.6124114,2656.0,2655.9,3.7652]
[1727173041534,0.8225,2656.0,2655.9,3.7652]
[1727173043926,0.7899114,2656.1,2655.7,3.76548]
[1727173044221,0.7899114,2655.8,2655.3,3.76602]
[1727173044425,0.8225,2655.7,2655.2,3.76618]
[1727173044622,1.6124114,2655.7,2655.2,3.76618]
[1727173045001,0.7899114,2655.6,2655.2,3.76618]
[1727173045203,0.7899114,2655.6,2655.2,3.76613]
[1727173045415,1.6124114,2655.7,2655.3,3.76605]
[1727173045628,0.7899114,2655.6,2655.2,3.76619]
[1727173046429,5.2116123,2655.6,2654.9,3.76651]
[1727173046641,0.7899114,2655.3,2654.9,3.76651]
[1727173046934,0.7899114,2655.3,2654.7,3.76683]
[1727173047095,0.7899114,2655.3,2654.8,3.76675]
[1727173047289,0.7899114,2655.3,2654.9,3.7666]
[1727173047735,0.7899114,2655.3,2654.9,3.76653]
[1727173048231,0.7899114,2655.3,2654.9,7.53306]
[1727173048433,0.7899114,2655.3,2654.9,3.76653]
[1727173049228,0.7899114,2655.3,2655.0,3.76647]
[1727173049635,0.7899114,2655.3,2654.9,3.76653]
[1727173049799,0.7899114,2655.3,2654.9,7.53307]
[1727173050132,0.7899114,2655.3,2654.9,3.76653]
[1727173050297,0.7899114,2655.3,2654.9,7.53305]
[1727173050493,0.7899114,2655.3,2654.9,3.76652]
[1727173050728,0.7899114,2655.3,2655.0,3.76647]
[1727173050933,0.7899114,2655.3,2655.0,6.87780379]
[1727173051437,0.7899114,2655.3,2655.1,0.5862]
[1727173051732,1.18275755,2655.4,2655.0,3.11133379]
[1727173051733,0.7899114,2655.4,2655.0,3.11133379]
[1727173051933,0.7899114,2655.4,2655.0,6.87779379]
[1727173052435,0.7899114,2655.4,2655.1,3.76624]
[1727173055710,0.7899114,2655.4,2655.2,3.76609]
[1727173055919,0.7899114,2655.4,2655.3,3.76605]
[1727173056649,0.7899114,2655.5,2655.3,3.76605]
[1727173057147,0.7899114,2655.6,2655.3,3.76605]
[1727173057297,0.7899114,2655.6,2655.4,3.76582]
[1727173058046,0.7899114,2655.6,2655.4,7.53164]
[1727173058211,0.7899114,2655.6,2655.4,3.76582]
[1727173058819,1.5786114,2655.7,2655.5,3.76576]
[1727173059022,0.7899114,2655.7,2655.6,3.76562]
[1727173059219,0.7899114,2655.8,2655.6,3.76562]
[1727173059641,0.7899114,2655.8,2655.5,3.76576]
[1727173060367,0.7899114,2655.8,2655.6,3.7656]
[1727173061230,0.7899114,2655.8,2655.5,3.76576]
[1727173061440,0.7899114,2655.8,2655.5,3.7657]
[1727173062125,0.7899114,2655.8,2655.4,3.7659]
[1727173062736,0.7899114,2655.8,2655.4,3.84120756]
[1727173063543,0.7899114,2655.8,2655.3,3.76595]
[1727173063744,0.7899114,2655.6,2655.3,3.76595]
[1727173064871,0.7887,2655.5,2655.1,3.76621]
[1727173065157,1.5786114,2655.5,2655.1,3.76621]
[1727173065363,1.5786114,2655.5,2655.0,3.11133379]
[1727173065524,0.7899114,2655.4,2655.0,3.11133379]